bitfinex/quotes_BTCUSD_20250825
["timestamp","ask_amount","ask_price","bid_price","bid_amount"]
[1756129366097,0.54675752,111190.0,111180.0,0.00053083]
[1756129366322,0.72662981,111190.0,111180.0,0.00053083]
[1756129366554,0.62231114,111190.0,111180.0,0.00053083]
[1756129367405,0.62331114,111190.0,111180.0,0.00053083]
[1756129369148,0.6648074,111190.0,111180.0,0.00053083]
[1756129369825,0.19733748,111180.0,111170.0,0.00274938]
[1756129370047,0.77131724,111180.0,111170.0,0.00274938]
[1756129370267,0.65210389,111180.0,111170.0,0.00274938]
[1756129370486,0.82170389,111180.0,111170.0,0.00274938]
[1756129370929,0.92170388,111180.0,111170.0,0.00274938]
[1756129371151,5.18074787,111180.0,111170.0,0.00274938]
[1756129371594,5.1806802,111180.0,111170.0,0.00274938]
[1756129372282,5.15218124,111180.0,111170.0,0.00274938]
[1756129372500,5.16146385,111180.0,111170.0,0.00274938]
[1756129372933,5.33590652,111180.0,111170.0,0.00274938]
[1756129373152,5.04086386,111180.0,111170.0,0.00274938]
[1756129373390,5.06042386,111180.0,111170.0,0.00274938]
[1756129373612,5.31042385,111180.0,111170.0,0.00274938]
[1756129373830,4.87541484,111180.0,111170.0,0.00274938]
[1756129374041,0.64487084,111180.0,111170.0,0.00274938]
[1756129374253,0.95613836,111180.0,111170.0,0.00274938]
[1756129374470,5.33944021,111180.0,111170.0,0.00274938]
[1756129374707,5.14285719,111180.0,111170.0,0.00274938]
[1756129374917,5.0624172,111180.0,111170.0,0.00274938]
[1756129375124,5.22649716,111180.0,111170.0,0.00274938]
[1756129375331,5.21821134,111180.0,111170.0,0.00274938]
[1756129375541,5.06821134,111180.0,111170.0,0.00274938]
[1756129375752,5.21821134,111180.0,111170.0,0.00274938]
[1756129376196,5.06821134,111180.0,111170.0,0.00274938]
[1756129376422,0.83766734,111180.0,111170.0,0.00274938]
[1756129376852,0.49461734,111180.0,111170.0,0.00274938]
[1756129377501,0.83461734,111180.0,111170.0,0.00274938]
[1756129377734,0.83761734,111180.0,111170.0,0.00274938]
[1756129377943,0.83761024,111180.0,111170.0,0.00274938]
[1756129378169,0.30865122,111180.0,111170.0,0.00274938]
[1756129378389,0.30865122,111180.0,111170.0,0.00798938]
[1756129378652,0.81817122,111180.0,111170.0,0.00274938]
[1756129378867,0.30865122,111180.0,111170.0,0.07909101]
[1756129379086,0.47195879,111180.0,111170.0,0.07586101]
[1756129379514,0.47195879,111180.0,111170.0,0.07909101]
[1756129379725,0.47195879,111180.0,111170.0,0.07586101]
[1756129379966,0.47195879,111180.0,111170.0,0.07385101]
[1756129380389,0.47195879,111180.0,111170.0,0.07909101]
[1756129380620,0.81195879,111180.0,111170.0,0.00274938]
[1756129380826,0.81193879,111180.0,111170.0,0.00274938]
[1756129381038,0.79337317,111180.0,111170.0,0.00274938]
[1756129381249,0.80994788,111180.0,111170.0,0.00274938]
[1756129381465,0.81094788,111180.0,111170.0,0.00274938]
[1756129381682,0.81094983,111180.0,111170.0,0.00274938]
[1756129382121,0.80794983,111180.0,111170.0,0.00274938]
[1756129382346,0.80206683,111180.0,111170.0,0.00274938]
[1756129382570,0.63056683,111180.0,111170.0,0.00475938]
[1756129382790,0.62434987,111180.0,111170.0,0.00798938]
[1756129383007,0.53746512,111180.0,111170.0,0.00798938]
[1756129383228,0.70690512,111180.0,111170.0,0.00798938]
[1756129383451,0.70690512,111180.0,111170.0,0.00475938]
[1756129383683,0.79378987,111180.0,111170.0,0.00274938]
[1756129384336,0.79576987,111180.0,111170.0,0.00274938]
[1756129384761,0.79378987,111180.0,111170.0,0.00274938]
[1756129385021,0.62434987,111180.0,111170.0,0.00475938]
[1756129385232,0.79378987,111180.0,111170.0,0.00798938]
[1756129385456,0.79378987,111180.0,111170.0,0.00274938]
[1756129385668,0.81607242,111180.0,111170.0,0.00274938]
[1756129386548,0.81409242,111180.0,111170.0,0.00274938]
[1756129386791,0.64465242,111180.0,111170.0,0.00798938]
[1756129387232,0.55776767,111180.0,111170.0,0.00798938]
[1756129387452,0.72716767,111180.0,111170.0,0.00798938]
[1756129388141,0.81603242,111180.0,111170.0,0.00274938]
[1756129388354,0.64663242,111180.0,111170.0,0.00274938]
[1756129388572,0.64465242,111180.0,111170.0,0.00274938]
[1756129388796,0.64465242,111180.0,111170.0,0.00798938]
[1756129388797,0.81401242,111180.0,111170.0,0.00798938]
[1756129389467,0.81401242,111180.0,111170.0,0.00274938]
[1756129389693,0.81401242,111180.0,111170.0,0.00475938]
[1756129389915,0.55783954,111180.0,111170.0,0.00798938]
[1756129390150,0.72096115,111180.0,111170.0,0.00798938]
[1756129390371,0.55160115,111180.0,111170.0,0.00798938]
[1756129390588,0.72096115,111180.0,111170.0,0.00798938]
[1756129390816,0.55160115,111180.0,111170.0,0.00798938]
[1756129391032,0.72092115,111180.0,111170.0,0.00798938]
[1756129391255,0.71992115,111180.0,111170.0,0.00798938]
[1756129391961,0.55060115,111180.0,111170.0,0.00798938]
[1756129392180,0.72616169,111180.0,111170.0,0.01098938]
[1756129392873,0.72814169,111180.0,111170.0,0.00574938]
[1756129393104,0.81502644,111180.0,111170.0,0.00574938]
[1756129393333,0.81301471,111180.0,111170.0,0.00775938]
[1756129393550,0.72612996,111180.0,111170.0,0.01098938]
[1756129394252,0.55684996,111180.0,111170.0,0.01098938]
[1756129394479,0.72612996,111180.0,111170.0,0.01198938]
[1756129394694,0.72712996,111180.0,111170.0,0.01198938]
[1756129395094,0.81599471,111180.0,111170.0,0.00574938]
[1756129395338,0.79993783,111180.0,111170.0,0.00574938]
[1756129395529,0.79893783,111180.0,111170.0,0.01098938]
[1756129395756,0.80091783,111180.0,111170.0,0.00574938]
[1756129395983,0.80495783,111180.0,111170.0,0.00674938]
[1756129396193,0.8132803,111180.0,111170.0,0.00674938]
[1756129397553,0.8102403,111180.0,111170.0,0.00374938]
[1756129397774,0.8132903,111180.0,111170.0,0.00374938]
[1756129398023,0.8102403,111180.0,111170.0,0.00374938]
[1756129398245,0.8082603,111180.0,111170.0,0.00575938]
[1756129398472,0.8223377,111180.0,111170.0,0.00574938]
[1756129398699,0.8223377,111180.0,111170.0,0.00474938]
[1756129398924,0.8213377,111180.0,111170.0,0.00474938]
[1756129399177,0.8233177,111180.0,111170.0,0.00474938]
[1756129399635,0.8233177,111180.0,111170.0,0.00574938]
[1756129399636,0.82234841,111180.0,111170.0,0.00574938]
[1756129400113,0.82433841,111180.0,111170.0,0.00474938]
[1756129400322,0.82333873,111180.0,111170.0,0.00474938]
[1756129400590,0.82333877,111180.0,111170.0,0.00474938]
[1756129401718,0.82333877,111180.0,111170.0,0.00274938]
[1756129401945,0.80926137,111180.0,111170.0,0.00274938]
[1756129402200,0.81229137,111180.0,111170.0,0.00274938]
[1756129402645,5.07947211,111180.0,111170.0,0.00274938]
[1756129402865,0.78735366,111170.0,111160.0,0.20005]
[1756129403120,5.07940343,111170.0,111160.0,0.20005]
[1756129403357,5.29852344,111170.0,111160.0,0.20005]
[1756129403575,4.97940344,111170.0,111160.0,0.20005]
[1756129404035,5.12940344,111170.0,111160.0,0.20005]
[1756129404311,5.14852344,111170.0,111160.0,0.20005]
[1756129404556,4.97940344,111170.0,111160.0,0.20005]
[1756129404799,5.14852344,111170.0,111160.0,0.20005]
[1756129405027,4.98140344,111170.0,111160.0,0.20005]
[1756129405263,4.99548417,111170.0,111160.0,0.20005]
[1756129405489,5.31460417,111170.0,111160.0,0.20005]
[1756129405728,5.31158417,111170.0,111160.0,0.20005]
[1756129405945,4.99548417,111170.0,111160.0,0.20005]
[1756129406197,5.19162317,111170.0,111160.0,0.20005]
[1756129406418,5.17244037,111170.0,111160.0,0.20005]
[1756129406626,5.32244037,111170.0,111160.0,0.20005]
[1756129406859,5.34160827,111170.0,111160.0,0.20005]
[1756129407077,5.02252827,111170.0,111160.0,0.20005]
[1756129407310,5.34160798,111170.0,111160.0,0.20005]
[1756129407559,5.34160402,111170.0,111160.0,0.20005]
[1756129407815,5.19160402,111170.0,111160.0,0.20005]
[1756129408029,5.34160402,111170.0,111160.0,0.20005]
[1756129408255,5.44160401,111170.0,111160.0,0.20005]
[1756129408465,5.27552401,111170.0,111160.0,0.20005]
[1756129408682,5.17552402,111170.0,111160.0,0.20005]
[1756129408896,5.17552402,111170.0,111160.0,1e-08]
[1756129408897,5.34460402,111170.0,111160.0,1e-08]
[1756129409324,5.32169889,111170.0,111160.0,1e-08]
[1756129409538,5.44456007,111170.0,111160.0,1e-08]
[1756129409960,0.53736985,111160.0,111150.0,0.00126648]
[1756129410177,5.07920653,111160.0,111150.0,0.00126648]
[1756129410389,5.35622954,111160.0,111150.0,0.00126648]
[1756129410833,5.36905238,111160.0,111150.0,0.00126648]
[1756129411039,5.39611738,111160.0,111150.0,0.00126648]
[1756129411257,5.25105609,111160.0,111150.0,0.00126648]
[1756129411463,5.42009609,111160.0,111150.0,0.00126648]
[1756129412129,5.12707739,111160.0,111150.0,0.00126648]
[1756129412362,5.13007739,111160.0,111150.0,0.00126648]
[1756129412577,5.14617739,111160.0,111150.0,0.00126648]
[1756129412794,0.85195572,111160.0,111150.0,0.00126648]
[1756129413011,0.85485572,111160.0,111150.0,0.00126648]
[1756129413229,4.93552634,111160.0,111150.0,0.00126648]
[1756129413444,5.12297536,111160.0,111150.0,0.00126648]
[1756129413662,5.11997536,111160.0,111150.0,0.00126648]
[1756129413885,5.11603536,111160.0,111150.0,0.00126648]
[1756129414329,4.94703536,111160.0,111150.0,0.00126648]
[1756129414559,0.50060263,111160.0,111150.0,0.00126648]
[1756129414993,0.51805165,111160.0,111150.0,0.00126648]
[1756129415212,0.51805165,111160.0,111150.0,0.00643648]
[1756129415213,0.83851263,111160.0,111150.0,0.00643648]
[1756129415434,0.66951263,111160.0,111150.0,0.00643648]
[1756129416163,0.2834319,111160.0,111150.0,0.00643648]
[1756129416376,0.17990465,111170.0,111150.0,0.00692883]
[1756129416600,0.1893459,111190.0,111160.0,0.25413025]
[1756129416820,0.1798898,111180.0,111160.0,0.25102112]
[1756129417039,0.19396564,111180.0,111160.0,1.39902702]
[1756129417293,0.19396564,111180.0,111170.0,0.00206]
[1756129417954,0.01407699,111180.0,111170.0,0.2688494]
[1756129418170,0.00048,111190.0,111170.0,0.2688494]
[1756129418405,0.00148,111190.0,111180.0,0.26677321]
[1756129418603,0.00148,111190.0,111180.0,0.43775321]
[1756129419042,0.00148,111190.0,111180.0,0.27194321]
[1756129419262,0.00148,111190.0,111180.0,0.09205475]
[1756129419492,0.18135229,111190.0,111180.0,0.00517]
[1756129420863,0.17990465,111170.0,111160.0,0.00311]
[1756129421098,0.17990465,111170.0,111160.0,0.00517]
[1756129421323,0.34878465,111170.0,111160.0,0.00206]
[1756129421778,0.17990238,111180.0,111160.0,0.00517]
[1756129421779,0.1939795,111180.0,111160.0,0.00517]
[1756129421998,0.1939795,111180.0,111170.0,0.008]
[1756129421999,0.17988958,111180.0,111170.0,0.008]
[1756129422222,0.17988958,111180.0,111170.0,0.01317]
[1756129422478,0.18088958,111180.0,111170.0,0.01317]
[1756129422699,0.18088958,111180.0,111170.0,0.00817]
[1756129422912,0.18088958,111180.0,111170.0,0.00517]
[1756129423131,0.17988958,111180.0,111170.0,0.00517]
[1756129423354,0.13399278,111190.0,111170.0,0.18507444]
[1756129423577,0.13062017,111190.0,111170.0,0.1709]
[1756129423810,0.17988846,111180.0,111170.0,0.00517]
[1756129424078,0.17988846,111180.0,111170.0,0.00206]
[1756129424322,0.34868846,111180.0,111170.0,0.00206]
[1756129425226,0.17990465,111170.0,111160.0,0.007]
[1756129425439,0.17990465,111170.0,111160.0,0.00906]
[1756129425661,0.17990465,111170.0,111160.0,0.007]
[1756129426096,0.19398215,111170.0,111160.0,0.007]
[1756129426322,0.19498215,111170.0,111160.0,0.01617]
[1756129426542,0.0150775,111170.0,111160.0,0.26719246]
[1756129427030,0.0150775,111170.0,111160.0,0.26019246]
[1756129427250,0.0150775,111170.0,111160.0,0.51583721]
[1756129427491,0.001,111170.0,111160.0,1.49528177]
[1756129427966,0.001,111170.0,111160.0,0.51583721]
[1756129428185,0.001,111170.0,111160.0,0.34707721]
[1756129428454,0.001,111170.0,111160.0,0.51579721]
[1756129429346,0.001,111170.0,111160.0,0.16715638]
[1756129429575,0.001,111170.0,111160.0,0.00606]
[1756129429576,0.18090465,111170.0,111160.0,0.00606]
[1756129430046,0.001,111170.0,111160.0,0.27597558]
[1756129430263,0.001,111170.0,111160.0,0.27197558]
[1756129430499,0.17988905,111180.0,111160.0,0.27197558]
[1756129430941,0.17990465,111170.0,111160.0,0.17074]
[1756129431161,0.18090465,111170.0,111160.0,0.003]
[1756129431427,0.69482465,111170.0,111160.0,0.003]
[1756129431665,0.17992083,111160.0,111150.0,0.00126648]
[1756129431852,0.17992083,111160.0,111150.0,0.00332648]
[1756129432284,0.17992083,111160.0,111150.0,0.00126648]
[1756129432725,0.17992083,111160.0,111150.0,0.00643648]
[1756129432942,0.51990465,111170.0,111150.0,0.00643648]
[1756129433157,0.17992083,111160.0,111150.0,0.00643648]
[1756129433379,0.17990614,111170.0,111150.0,0.27325825]
[1756129433611,0.17992083,111160.0,111150.0,0.00332648]
[1756129433840,0.17990614,111170.0,111150.0,0.1832627]
[1756129434061,0.17992083,111160.0,111150.0,0.00332648]
[1756129434735,0.35380083,111160.0,111150.0,0.00126648]
[1756129435197,0.45476409,111160.0,111150.0,0.00126648]
[1756129435883,0.79476409,111160.0,111150.0,0.00126648]
[1756129436104,0.81221311,111160.0,111150.0,0.00126648]
[1756129436323,0.81221311,111160.0,111150.0,0.00531648]
[1756129436324,0.64457311,111160.0,111150.0,0.00531648]
[1756129436597,0.81317311,111160.0,111150.0,0.00531648]
[1756129436812,0.82973967,111160.0,111150.0,0.00531648]
[1756129437018,0.82973967,111160.0,111150.0,0.01331648]
[1756129437232,0.82969967,111160.0,111150.0,0.01331648]
[1756129437449,0.82969967,111160.0,111150.0,0.00531648]
[1756129437652,0.81313311,111160.0,111150.0,0.00531648]
[1756129438073,0.82970069,111160.0,111150.0,0.00531648]
[1756129438276,0.81317311,111160.0,111150.0,0.00531648]
[1756129438492,0.82974054,111160.0,111150.0,0.01031648]
[1756129438932,0.82974251,111160.0,111150.0,0.01031648]
[1756129439126,0.82970251,111160.0,111150.0,0.00631648]
[1756129439372,0.81125349,111160.0,111150.0,0.00631648]
[1756129439796,0.64269349,111160.0,111150.0,0.00631648]
[1756129440006,0.64269349,111160.0,111150.0,0.01031648]
[1756129440007,0.81225349,111160.0,111150.0,0.01031648]
[1756129440451,0.64369349,111160.0,111150.0,0.01031648]
[1756129440657,0.81225349,111160.0,111150.0,0.00631648]
[1756129440879,0.81125349,111160.0,111150.0,0.00631648]
[1756129441765,0.63745349,111160.0,111150.0,0.00631648]
[1756129441982,0.36255934,111160.0,111150.0,0.00843648]
[1756129442208,0.34848083,111160.0,111150.0,0.00843648]
[1756129442670,0.17992083,111160.0,111150.0,0.00843648]
[1756129442879,0.34844083,111160.0,111150.0,0.00843648]
[1756129443362,0.24910614,111170.0,111150.0,0.18837336]
[1756129443575,0.17990614,111170.0,111150.0,0.19137336]
[1756129443798,0.01507788,111160.0,111150.0,0.19437336]
[1756129444041,0.01507788,111160.0,111150.0,0.44677811]
[1756129444466,0.001,111160.0,111150.0,1.42922267]
[1756129444691,0.001,111160.0,111150.0,1.42622267]
[1756129444877,0.23768,111190.0,111180.0,0.17988846]
[1756129445018,0.17987229,111190.0,111180.0,0.00212]
[1756129445435,0.19393291,111200.0,111180.0,0.18500846]
[1756129445639,0.19393291,111200.0,111180.0,0.18413842]
[1756129445857,0.01407646,111200.0,111190.0,0.17987229]
[1756129446059,0.01407646,111200.0,111190.0,0.18199229]
[1756129446520,0.01407646,111200.0,111190.0,0.18458229]
[1756129446982,0.01407646,111200.0,111190.0,0.35302229]
[1756129447120,0.35730234,111220.0,111200.0,0.17985146]
[1756129447318,0.20293498,111220.0,111200.0,0.17985146]
[1756129447519,0.20293498,111220.0,111210.0,0.00212]
[1756129447936,0.1939438,111220.0,111210.0,0.00212]
[1756129448833,0.19389641,111220.0,111210.0,0.00212]
[1756129449578,0.17983994,111210.0,111200.0,0.07110163]
[1756129449793,0.17983994,111210.0,111190.0,0.1684]
[1756129449996,0.17987229,111190.0,111180.0,0.07123159]
[1756129450204,0.17987229,111190.0,111180.0,0.25112005]
[1756129450444,0.18279712,111200.0,111180.0,0.25112005]
[1756129450809,0.18279712,111200.0,111180.0,0.00012996]
[1756129450810,0.18482229,111190.0,111180.0,0.00012996]
[1756129451023,0.35318229,111190.0,111180.0,0.00012996]
[1756129451251,0.36725692,111190.0,111180.0,0.00012996]
[1756129451654,0.35318229,111190.0,111180.0,0.00012996]
[1756129451873,0.78006704,111190.0,111180.0,0.00012996]
[1756129452083,0.79666,111190.0,111180.0,0.00012996]
[1756129453542,0.79665718,111190.0,111180.0,0.00012996]
[1756129453707,0.80287815,111190.0,111180.0,0.00012996]
[1756129453907,0.79665718,111190.0,111180.0,0.00012996]
[1756129454107,0.80287815,111190.0,111180.0,0.00012996]
[1756129454714,0.79665718,111190.0,111180.0,0.00112996]
[1756129455120,0.80288258,111190.0,111180.0,0.00112996]
[1756129455322,0.80288331,111190.0,111180.0,0.00112996]
[1756129455527,0.62829718,111190.0,111180.0,0.00112996]
[1756129455720,0.79657718,111190.0,111180.0,0.00512996]
[1756129456065,0.79657718,111190.0,111180.0,0.00112996]
[1756129456723,0.79658842,111190.0,111180.0,0.00112996]
[1756129456924,0.62830842,111190.0,111180.0,0.00112996]
[1756129457207,0.79658842,111190.0,111180.0,0.00112996]
[1756129457395,0.77998704,111190.0,111180.0,0.00012996]
[1756129457643,0.7965894,111190.0,111180.0,0.00012996]
[1756129457850,0.79658942,111190.0,111180.0,0.00012996]
[1756129458467,0.79758942,111190.0,111180.0,0.00012996]
[1756129458939,0.79658942,111190.0,111180.0,0.00012996]
[1756129460220,0.82026466,111190.0,111180.0,0.00012996]
[1756129461099,0.53736985,111160.0,111150.0,0.00131648]
[1756129461317,0.62541796,111160.0,111150.0,0.00179648]
[1756129461852,0.53652321,111160.0,111150.0,0.00391648]
[1756129461945,0.68812083,111160.0,111150.0,0.00391648]
[1756129462168,0.51992083,111160.0,111150.0,0.00391648]
[1756129462405,0.68812083,111160.0,111150.0,0.00391648]
[1756129462846,0.51992083,111160.0,111150.0,0.00391648]
[1756129463071,0.68812083,111160.0,111150.0,0.00391648]
[1756129463284,0.78915396,111160.0,111150.0,0.00179648]
[1756129463498,0.80574954,111160.0,111150.0,0.00179648]
[1756129463720,0.80574954,111160.0,111150.0,0.00279648]
[1756129463721,0.63754954,111160.0,111150.0,0.00279648]
[1756129463930,0.80574954,111160.0,111150.0,0.00279648]
[1756129464390,0.63259954,111160.0,111150.0,0.00279648]
[1756129464614,0.80574954,111160.0,111150.0,0.00279648]
[1756129465052,0.81982881,111160.0,111150.0,0.00279648]
[1756129466157,0.83727783,111160.0,111150.0,0.00279648]
[1756129466401,0.83727783,111160.0,111150.0,0.00179648]
[1756129466617,0.81978383,111160.0,111150.0,0.00279648]
[1756129467294,0.65262383,111160.0,111150.0,0.00579648]
[1756129467516,0.82078383,111160.0,111150.0,0.00579648]
[1756129467735,0.65262383,111160.0,111150.0,0.00279648]
[1756129467949,0.82078383,111160.0,111150.0,0.00279648]
[1756129468169,0.81978383,111160.0,111150.0,0.00279648]
[1756129468450,0.65162383,111160.0,111150.0,0.00279648]
[1756129468661,0.81978383,111160.0,111150.0,0.00279648]
[1756129469311,0.83723285,111160.0,111150.0,0.00279648]
[1756129469521,0.66907285,111160.0,111150.0,0.00279648]
[1756129469748,0.83723285,111160.0,111150.0,0.00279648]
[1756129469961,0.83723538,111160.0,111150.0,0.00279648]
[1756129470414,0.65162636,111160.0,111150.0,0.00279648]
[1756129470624,0.81978636,111160.0,111150.0,0.00279648]
[1756129470845,0.81978636,111160.0,111150.0,0.00179648]
[1756129471060,0.65262636,111160.0,111150.0,0.00379648]
[1756129471289,0.82074636,111160.0,111150.0,0.00379648]
[1756129471730,0.84441689,111160.0,111150.0,0.00379648]
[1756129471958,5.07496089,111160.0,111150.0,0.00179648]
[1756129472214,5.18325525,111160.0,111150.0,0.00179648]
[1756129472424,5.49160984,111160.0,111150.0,0.00179648]
[1756129472637,5.63428747,111160.0,111150.0,0.00179648]
[1756129472868,5.75462984,111160.0,111150.0,0.00179648]
[1756129473075,5.75460294,111160.0,111150.0,0.00179648]
[1756129473298,5.75460292,111160.0,111150.0,0.00179648]
[1756129473543,5.79945695,111160.0,111150.0,0.00179648]
[1756129473758,5.63133695,111160.0,111150.0,0.00279648]
[1756129473973,5.79945695,111160.0,111150.0,0.00279648]
[1756129474206,0.81440905,111150.0,111140.0,0.00025]
[1756129474412,5.12562617,111150.0,111140.0,0.0003943]
[1756129474621,5.29378617,111150.0,111140.0,0.0003943]
[1756129475497,5.29374617,111150.0,111140.0,0.0003943]
[1756129476194,5.38063092,111150.0,111140.0,0.0003943]
[1756129476408,5.2124371,111150.0,111140.0,0.0003943]
[1756129476620,5.3805571,111150.0,111140.0,0.0003943]
[1756129476841,5.38654504,111150.0,111140.0,0.0003943]
[1756129477064,5.82504504,111150.0,111140.0,0.0003943]
[1756129477283,5.65692062,111150.0,111140.0,0.0003943]
[1756129477538,5.82508062,111150.0,111140.0,0.0003943]
[1756129477757,0.78740222,111140.0,111130.0,0.01138585]
[1756129477968,0.78740222,111140.0,111120.0,5e-05]
[1756129477969,0.78741841,111130.0,111120.0,5e-05]
[1756129478206,5.15165626,111130.0,111120.0,5e-05]
[1756129478420,5.17400396,111130.0,111120.0,5e-05]
[1756129478632,5.34212396,111130.0,111120.0,5e-05]
[1756129479294,5.17400396,111130.0,111120.0,5e-05]
[1756129479505,5.02400396,111130.0,111120.0,5e-05]
[1756129479712,4.99671119,111130.0,111120.0,5e-05]
[1756129479922,5.16483119,111130.0,111120.0,5e-05]
[1756129480136,5.2117412,111130.0,111120.0,5e-05]
[1756129480345,5.0467112,111130.0,111120.0,5e-05]
[1756129480559,5.2148312,111130.0,111120.0,5e-05]
[1756129480787,5.33386803,111130.0,111120.0,5e-05]
[1756129481238,5.31483119,111130.0,111120.0,5e-05]
[1756129481675,5.3555999,111130.0,111120.0,5e-05]
[1756129482117,5.3595999,111130.0,111120.0,5e-05]
[1756129482805,5.3615999,111130.0,111120.0,5e-05]
[1756129482988,5.1934799,111130.0,111120.0,5e-05]
[1756129483231,5.3615999,111130.0,111120.0,5e-05]
[1756129483458,5.55915636,111130.0,111120.0,5e-05]
[1756129483683,5.58313507,111130.0,111120.0,5e-05]
[1756129483955,1.22593461,111120.0,111110.0,1.19469098]
[1756129484140,5.79049148,111120.0,111110.0,0.96314072]
[1756129484391,5.79358148,111120.0,111110.0,0.96314072]
[1756129484616,5.79358148,111120.0,111110.0,0.93460513]
[1756129484835,5.49417102,111120.0,111110.0,0.22112816]
[1756129485019,5.43379599,111120.0,111110.0,0.22112816]
[1756129485264,5.47691599,111120.0,111110.0,0.22112816]
[1756129485473,5.30879599,111120.0,111110.0,0.22112816]
[1756129485688,5.60191599,111120.0,111110.0,0.22112816]
[1756129485906,5.43379599,111120.0,111110.0,0.22112816]
[1756129486125,5.57707477,111120.0,111110.0,0.22112816]
[1756129486348,5.49333203,111120.0,111110.0,0.22112816]
[1756129486565,5.32525203,111120.0,111110.0,0.22112816]
[1756129486788,5.45025203,111120.0,111110.0,0.22112816]
[1756129487003,5.46424517,111120.0,111110.0,0.22112816]
[1756129487192,5.30437139,111120.0,111110.0,0.22112816]
[1756129487418,5.44546837,111120.0,111110.0,0.22112816]
[1756129487686,4.6799397,111120.0,111110.0,0.22112816]
[1756129487902,4.9790243,111120.0,111110.0,0.22112816]
[1756129488334,5.3221143,111120.0,111110.0,0.22112816]
[1756129488757,5.1690243,111120.0,111110.0,0.22112816]
[1756129488995,4.55894431,111120.0,111110.0,0.22612816]
[1756129489202,4.72706431,111120.0,111110.0,0.22612816]
[1756129489636,5.13777396,111120.0,111110.0,0.22112816]
[1756129489856,5.43600697,111120.0,111110.0,0.21064868]
[1756129490074,5.45420323,111120.0,111110.0,0.02064562]
[1756129490322,5.08747333,111120.0,111110.0,0.02564562]
[1756129490546,5.07502431,111120.0,111110.0,0.02564562]
[1756129490777,5.07502431,111120.0,111110.0,0.02262562]
[1756129490997,5.07002431,111120.0,111110.0,0.02064562]
[1756129491217,5.07198431,111120.0,111110.0,0.02064562]
[1756129491436,5.28039297,111120.0,111110.0,0.02364562]
[1756129491667,5.37829297,111120.0,111110.0,1e-08]
[1756129492349,5.55306443,111120.0,111110.0,1e-08]
[1756129492560,5.40306443,111120.0,111110.0,1e-08]
[1756129492779,5.55306443,111120.0,111110.0,1e-08]
[1756129493193,5.44142332,111120.0,111110.0,1e-08]
[1756129493427,5.27025332,111120.0,111110.0,1e-08]
[1756129493642,5.43833332,111120.0,111110.0,1e-08]
[1756129494100,5.44142332,111120.0,111110.0,1e-08]
[1756129494290,5.43842332,111120.0,111110.0,1e-08]
[1756129494506,5.43233332,111120.0,111110.0,1e-08]
[1756129494728,0.63745081,111110.0,111100.0,0.21023348]
[1756129494942,5.22317735,111110.0,111100.0,0.21023348]
[1756129495163,5.312107,111110.0,111100.0,0.21023348]
[1756129495405,5.312107,111110.0,111100.0,0.08256263]
[1756129495406,5.65153846,111110.0,111100.0,0.08256263]
[1756129495624,5.926767,111110.0,111100.0,0.08256263]
[1756129495860,5.89582921,111110.0,111100.0,0.08256263]
[1756129496076,5.95208343,111110.0,111100.0,0.08256263]
[1756129496508,5.97985654,111110.0,111100.0,0.08256263]
[1756129496740,5.88695654,111110.0,111100.0,0.08256263]
[1756129496954,5.69110611,111110.0,111100.0,0.08256263]
[1756129497171,5.576225,111110.0,111100.0,0.08256263]
[1756129497410,5.594265,111110.0,111100.0,0.08256263]
[1756129497622,5.276225,111110.0,111100.0,0.08256263]
[1756129497840,5.426225,111110.0,111100.0,0.08256263]
[1756129498124,5.67752174,111110.0,111100.0,0.08256263]
[1756129498332,5.64975148,111110.0,111100.0,0.08256263]
[1756129499170,5.426225,111110.0,111100.0,0.08256263]
[1756129499428,5.594265,111110.0,111100.0,0.08256263]
[1756129499656,5.590205,111110.0,111100.0,0.08472263]
[1756129499877,5.422165,111110.0,111100.0,0.08472263]
[1756129500114,5.590205,111110.0,111100.0,0.08472263]
[1756129500342,5.68237465,111110.0,111100.0,0.08256263]
[1756129500564,5.73791637,111110.0,111100.0,0.08256263]
[1756129500822,5.595265,111110.0,111100.0,0.08256263]
[1756129501048,5.595265,111110.0,111100.0,0.08556263]
[1756129501268,5.599505,111110.0,111100.0,0.08556263]
[1756129501498,5.59956956,111110.0,111100.0,0.08556263]
[1756129501722,5.59632956,111110.0,111100.0,0.08556263]
[1756129501975,0.09999999,111100.0,111090.0,0.00325]
[1756129502201,4.80962797,111100.0,111090.0,0.00325]
[1756129502418,4.63596619,111100.0,111090.0,0.0086]
[1756129502651,4.53655718,111100.0,111090.0,0.0086]
[1756129503560,4.36851718,111100.0,111090.0,0.0086]
[1756129504002,4.62342683,111100.0,111090.0,0.00541]
[1756129504226,4.62342683,111100.0,111090.0,0.0086]
[1756129504442,4.62352405,111100.0,111090.0,0.0086]
[1756129504932,5.09733478,111100.0,111090.0,0.00325]
[1756129505168,5.13540288,111100.0,111090.0,0.00325]
[1756129505394,4.93286116,111100.0,111090.0,0.00325]
[1756129505613,4.96063142,111100.0,111090.0,0.00325]
[1756129505823,4.98540288,111100.0,111090.0,0.00325]
[1756129506483,4.99352349,111100.0,111090.0,0.00325]
[1756129507129,4.73422111,111100.0,111090.0,0.00325]
[1756129507338,4.89793205,111100.0,111090.0,0.00325]
[1756129507547,4.92270351,111100.0,111090.0,0.00325]
[1756129508214,4.75466351,111100.0,111090.0,0.00325]
[1756129508451,4.72989205,111100.0,111090.0,0.00325]
[1756129508658,4.88068279,111100.0,111090.0,0.00325]
[1756129508887,4.80151244,111100.0,111090.0,0.00325]
[1756129509106,4.96955244,111100.0,111090.0,0.00325]
[1756129509323,4.71143279,111100.0,111090.0,0.00325]
[1756129509541,4.83264106,111100.0,111090.0,0.00325]
[1756129509755,4.85862535,111100.0,111090.0,0.00325]
[1756129509966,4.82466807,111100.0,111090.0,0.00541]
[1756129510195,4.85656535,111100.0,111090.0,0.00541]
[1756129510412,4.7501171,111100.0,111090.0,0.00641]
[1756129510631,4.64555684,111100.0,111090.0,0.0096]
[1756129510855,4.74645962,111100.0,111090.0,0.00425]
[1756129511099,4.94226988,111100.0,111090.0,0.00425]
[1756129511312,4.94251108,111100.0,111090.0,0.00425]
[1756129511546,5.04538407,111100.0,111090.0,0.00425]
[1756129511755,5.07084014,111100.0,111090.0,0.00425]
[1756129511966,5.08709185,111100.0,111090.0,0.00425]
[1756129512185,5.09761285,111100.0,111090.0,0.00425]
[1756129512466,5.04946386,111100.0,111090.0,0.00425]
[1756129512690,5.50019788,111100.0,111090.0,0.00425]
[1756129512912,1.37848606,111090.0,111080.0,0.01052138]
[1756129513124,5.24208381,111090.0,111080.0,0.01052138]
[1756129513348,5.27218381,111090.0,111080.0,0.01052138]
[1756129513560,5.33540358,111090.0,111080.0,0.01052138]
[1756129513809,5.3194477,111090.0,111080.0,0.01052138]
[1756129514044,5.42844255,111090.0,111080.0,0.01052138]
[1756129514255,5.44437553,111090.0,111080.0,0.01052138]
[1756129514479,5.13359695,111090.0,111080.0,0.01052138]